bitfinex-derivatives/quotes_BTCF0:USTF0_20250928
["timestamp","ask_amount","ask_price","bid_price","bid_amount"]
[1759103078448,0.03811581,112310.0,112300.0,1.70337199]
[1759103078644,0.03811581,112310.0,112300.0,1.96034412]
[1759103079954,0.01708,112310.0,112300.0,1.96034412]
[1759103084659,0.03811855,112310.0,112300.0,1.96034412]
[1759103086356,0.03811855,112310.0,112300.0,1.95966412]
[1759103086546,0.12711365,112310.0,112300.0,1.95966412]
[1759103086749,0.12711365,112310.0,112300.0,1.95962412]
[1759103086956,0.03811855,112310.0,112300.0,1.95962412]
[1759103088356,0.03811855,112310.0,112300.0,1.70265199]
[1759103088553,0.14984355,112310.0,112300.0,1.13898412]
[1759103088761,0.14984355,112310.0,112300.0,1.95946412]
[1759103090558,0.14984355,112310.0,112300.0,1.70249199]
[1759103090758,0.14984355,112310.0,112300.0,1.95946412]
[1759103091952,0.14984355,112310.0,112300.0,1.70249199]
[1759103092153,0.1239893,112300.0,112290.0,0.70678313]
[1759103092364,0.1239893,112300.0,112290.0,1.52698313]
[1759103092658,0.1239893,112300.0,112290.0,1.52690313]
[1759103093455,0.1249893,112300.0,112290.0,1.52690313]
[1759103095156,0.1249893,112300.0,112290.0,1.269931]
[1759103095458,0.1249893,112300.0,112290.0,1.52690313]
[1759103095459,0.14605335,112300.0,112290.0,1.52690313]
[1759103095854,0.14605335,112300.0,112290.0,0.70678313]
[1759103096060,0.14605335,112300.0,112290.0,1.52666313]
[1759103098060,0.14605335,112300.0,112290.0,1.52654313]
[1759103098666,0.14605335,112300.0,112290.0,0.70678313]
[1759103098864,0.14605335,112300.0,112290.0,1.52654313]
[1759103099064,0.14605335,112300.0,112290.0,0.70678313]
[1759103099268,0.14605335,112300.0,112290.0,1.52642313]
[1759103099464,0.14605335,112300.0,112290.0,0.70678313]
[1759103100159,0.4235399,112300.0,112280.0,0.71550465]
[1759103100365,0.38096353,112290.0,112280.0,0.36951642]
[1759103100566,0.1239914,112290.0,112280.0,1.1802]
[1759103100763,0.1239914,112290.0,112280.0,1.2692194]
[1759103100971,0.1239914,112290.0,112280.0,1.52619153]
[1759103101473,0.03498,112290.0,112280.0,1.53495601]
[1759103101863,0.1239914,112290.0,112280.0,1.53495601]
[1759103102070,0.1239914,112290.0,112280.0,1.27898388]
[1759103102262,0.1239914,112290.0,112280.0,1.53795601]
[1759103102462,0.03498,112290.0,112280.0,1.53795601]
[1759103102870,0.1239914,112290.0,112280.0,1.53795601]
[1759103103058,0.1239914,112290.0,112280.0,1.53595601]
[1759103103259,0.1239914,112290.0,112280.0,1.53795601]
[1759103103870,0.03498,112290.0,112280.0,1.53795601]
[1759103104970,0.03498,112290.0,112280.0,1.28098388]
[1759103105265,0.03498,112290.0,112280.0,1.53795601]
[1759103106060,0.03498,112290.0,112280.0,1.28098388]
[1759103106269,0.03498,112290.0,112280.0,1.53795601]
[1759103108974,0.1239917,112290.0,112280.0,1.53795601]
[1759103109166,0.03498,112290.0,112280.0,1.53795601]
[1759103109673,0.01311,112290.0,112280.0,1.53795601]
[1759103110468,0.01311,112290.0,112280.0,0.71855601]
[1759103110673,0.01311,112290.0,112280.0,1.53759601]
[1759103111476,0.1239916,112290.0,112280.0,1.28038388]
[1759103111676,0.1239916,112290.0,112280.0,1.53731601]
[1759103112478,0.03498,112290.0,112280.0,1.53731601]
[1759103112680,0.01311,112290.0,112280.0,1.53731601]
[1759103114378,0.01311,112290.0,112280.0,1.79430506]
[1759103118669,0.01311,112290.0,112280.0,1.28098388]
[1759103118875,0.01311,112290.0,112280.0,1.79494506]
[1759103119682,0.03362442,112300.0,112290.0,0.0890116]
[1759103119975,0.0546993,112300.0,112290.0,0.96377278]
[1759103120180,0.0415893,112300.0,112290.0,1.36377278]
[1759103121176,0.0425893,112300.0,112290.0,1.36377278]
[1759103122476,0.01308,112310.0,112300.0,0.0890037]
[1759103122785,0.01308,112310.0,112300.0,1.78492488]
[1759103124270,0.01308,112310.0,112300.0,1.85619821]
[1759103124476,0.01608,112310.0,112300.0,1.85587821]
[1759103124676,0.01608,112310.0,112300.0,1.85583821]
[1759103128484,0.01608,112310.0,112300.0,1.85539821]
[1759103130383,0.01608,112310.0,112300.0,1.85507821]
[1759103130586,0.01608,112310.0,112300.0,1.03503821]
[1759103130886,0.01608,112310.0,112300.0,1.85507821]
[1759103131078,0.36205659,112310.0,112300.0,1.03503821]
[1759103131282,0.36205659,112310.0,112300.0,1.85523821]
[1759103131684,0.105076,112310.0,112300.0,1.85523821]
[1759103131986,0.27306059,112310.0,112300.0,1.85523821]
[1759103132589,0.36205689,112310.0,112300.0,1.85519821]
[1759103132789,0.1050763,112310.0,112300.0,1.85519821]
[1759103134591,0.1260455,112310.0,112300.0,1.85519821]
[1759103135094,0.1260455,112310.0,112300.0,1.85491821]
[1759103137391,0.1260455,112310.0,112300.0,1.34095703]
[1759103137593,0.1260455,112310.0,112300.0,1.85491821]
[1759103138088,0.38302609,112310.0,112300.0,0.77805762]
[1759103138294,0.40442609,112310.0,112300.0,1.59761762]
[1759103138495,0.40442609,112310.0,112300.0,1.85459821]
[1759103138793,0.40442609,112310.0,112300.0,1.85439821]
[1759103138992,0.1474455,112310.0,112300.0,1.85439821]
[1759103139194,0.40442609,112310.0,112300.0,1.85439821]
[1759103139490,0.40442609,112310.0,112300.0,0.77805762]
[1759103140088,0.0890042,112300.0,112290.0,0.75461781]
[1759103140288,0.1448934,112300.0,112290.0,0.75461781]
[1759103140482,0.40187399,112300.0,112290.0,0.49763722]
[1759103140689,0.40187399,112300.0,112290.0,0.04783142]
[1759103140690,1.44057126,112300.0,112290.0,0.04783142]
[1759103140888,0.1239322,112290.0,112280.0,0.76339099]
[1759103141095,0.40188199,112290.0,112280.0,1.58259099]
[1759103141393,0.38091279,112290.0,112280.0,1.83957158]
[1759103141785,0.38091279,112290.0,112280.0,1.02037158]
[1759103141996,0.40188331,112290.0,112280.0,0.76339099]
[1759103142188,0.80188331,112290.0,112280.0,1.58359099]
[1759103142384,0.80188331,112290.0,112280.0,1.2375959]
[1759103142688,0.80188331,112290.0,112280.0,1.49457649]
[1759103143089,0.80188331,112290.0,112280.0,1.2375959]
[1759103143288,0.80188331,112290.0,112280.0,0.86811142]
[1759103143492,0.80188331,112290.0,112280.0,0.05083142]
[1759103143691,0.80188331,112290.0,112280.0,0.87011142]
[1759103144395,0.80188331,112290.0,112280.0,0.82228]
[1759103144991,0.80188331,112290.0,112280.0,0.91997614]
[1759103144992,0.54490272,112290.0,112280.0,0.91997614]
[1759103145291,0.80188331,112290.0,112280.0,0.91997614]
[1759103146196,0.80188331,112290.0,112280.0,0.9113]
[1759103146388,0.80188331,112290.0,112280.0,0.82228]
[1759103146993,1.16268331,112290.0,112280.0,0.82284]
[1759103147296,1.4196639,112290.0,112280.0,0.003]
[1759103147898,1.16268331,112290.0,112280.0,0.003]
[1759103149297,1.98256331,112290.0,112280.0,0.003]
[1759103149498,1.72558272,112290.0,112280.0,0.003]
[1759103149693,1.98256331,112290.0,112280.0,0.003]
[1759103149893,1.16268331,112290.0,112280.0,0.003]
[1759103150093,1.98268331,112290.0,112280.0,0.003]
[1759103150394,1.72574272,112290.0,112280.0,0.0920199]
[1759103150596,1.98272331,112290.0,112280.0,0.0920199]
[1759103151598,1.98296331,112290.0,112280.0,0.0920199]
[1759103152696,1.16268331,112290.0,112280.0,0.0920199]
[1759103152897,1.98332331,112290.0,112280.0,0.0920199]
[1759103153091,1.62252331,112290.0,112280.0,0.0920199]
[1759103153299,0.80188331,112290.0,112280.0,0.0920199]
[1759103153500,1.62244331,112290.0,112280.0,0.0920199]
[1759103156298,1.36546272,112290.0,112280.0,0.0920199]
[1759103156499,1.62244331,112290.0,112280.0,0.0920199]
[1759103157004,1.62200331,112290.0,112280.0,0.0920199]
[1759103158001,1.62196331,112290.0,112280.0,0.0920199]
[1759103159007,0.80188331,112290.0,112280.0,0.0920199]
[1759103159198,1.62460331,112290.0,112280.0,0.0920199]
[1759103159794,0.40188311,112290.0,112280.0,0.0920199]
[1759103160000,1.22420311,112290.0,112280.0,0.34900049]
[1759103160708,1.22420311,112290.0,112280.0,0.70980049]
[1759103160900,0.31287111,112290.0,112280.0,0.70980049]
[1759103161609,0.05589052,112290.0,112280.0,0.70980049]
[1759103161804,0.05589052,112290.0,112280.0,1.4146125]
[1759103162010,0.01352,112290.0,112280.0,1.4146125]
[1759103162708,0.01352,112290.0,112280.0,1.36678108]
[1759103167511,0.01352,112290.0,112280.0,2.18946108]
[1759103167901,0.01352,112290.0,112280.0,2.18922108]
[1759103169702,0.01352,112290.0,112280.0,2.18938108]
[1759103169907,0.01352,112290.0,112280.0,2.18926108]
[1759103170413,0.01352,112290.0,112280.0,2.23718295]
[1759103170802,0.01352,112290.0,112280.0,1.72322177]
[1759103171006,0.01352,112290.0,112280.0,2.23718295]
[1759103171407,0.01352,112290.0,112280.0,1.72322177]
[1759103171602,0.01352,112290.0,112280.0,1.41470295]
[1759103171809,0.01352,112290.0,112280.0,2.23742295]
[1759103172008,0.01352,112290.0,112280.0,1.41470295]
[1759103172210,0.29245059,112290.0,112280.0,1.01470295]
[1759103172410,0.29245059,112290.0,112280.0,1.58048236]
[1759103172607,0.0564296,112290.0,112280.0,0.75772236]
[1759103172810,0.0564296,112290.0,112280.0,1.83750295]
[1759103173211,0.0564296,112290.0,112280.0,1.58052236]
[1759103173510,0.0564296,112290.0,112280.0,1.83750295]
[1759103173910,0.0564296,112290.0,112280.0,1.83758295]
[1759103176221,0.0564296,112290.0,112280.0,1.58061704]
[1759103177220,0.03547,112290.0,112280.0,1.58061704]
[1759103177808,0.14559886,112290.0,112280.0,0.75773704]
[1759103178115,0.14559886,112290.0,112280.0,1.32278177]
[1759103178419,0.38147737,112290.0,112280.0,1.32278177]
[1759103178620,0.1244821,112290.0,112280.0,1.57977704]
[1759103179022,0.1244821,112290.0,112280.0,1.32278177]
[1759103179222,0.1244821,112290.0,112280.0,1.57977704]
[1759103180721,0.1244821,112290.0,112280.0,0.96198177]
[1759103180924,0.1244821,112290.0,112280.0,1.57977704]
[1759103183127,0.1244821,112290.0,112280.0,1.58121704]
[1759103184021,0.1244821,112290.0,112280.0,1.58057704]
[1759103186729,0.03547,112290.0,112280.0,1.58057704]
[1759103187134,0.124482,112290.0,112280.0,1.53265517]
[1759103189434,0.124482,112290.0,112280.0,1.59637197]
[1759103189734,0.124482,112290.0,112280.0,1.53265517]
[1759103191641,0.124482,112290.0,112280.0,1.2756599]
[1759103191840,0.124482,112290.0,112280.0,1.53265517]
[1759103192041,0.124482,112290.0,112280.0,1.32419173]
[1759103192342,0.124482,112290.0,112280.0,1.581187]
[1759103192535,0.124482,112290.0,112280.0,0.757787]
[1759103192735,0.124482,112290.0,112280.0,1.580747]
[1759103194436,0.124482,112290.0,112280.0,0.757787]
[1759103194740,0.124482,112290.0,112280.0,1.581027]
[1759103195143,0.14546954,112290.0,112280.0,1.581027]
[1759103197739,0.14546954,112290.0,112280.0,1.580467]
[1759103198446,0.14546954,112290.0,112280.0,0.757787]
[1759103198947,0.14546954,112290.0,112280.0,1.580267]
[1759103201239,0.14546954,112290.0,112280.0,1.579987]
[1759103201941,0.14546954,112290.0,112280.0,0.757787]
[1759103202141,0.14546954,112290.0,112280.0,1.32279173]
[1759103206342,0.14546954,112290.0,112280.0,1.32679173]
[1759103206942,0.14546954,112290.0,112280.0,1.33279173]
[1759103208447,0.14546954,112290.0,112280.0,1.32779173]
[1759103208648,0.14546954,112290.0,112280.0,1.33079173]
[1759103208843,0.40246481,112290.0,112280.0,1.24177183]
[1759103209140,0.80246481,112290.0,112280.0,1.23825183]
[1759103210345,0.80246481,112290.0,112280.0,0.41677183]
[1759103210545,0.80246481,112290.0,112280.0,1.23809183]
[1759103211050,0.80246481,112290.0,112280.0,0.41677183]
[1759103211253,0.80246481,112290.0,112280.0,1.23797183]
[1759103211846,1.05946008,112290.0,112280.0,1.23797183]
[1759103212039,1.05946008,112290.0,112280.0,0.41677183]
[1759103212245,0.80246481,112290.0,112280.0,0.87705183]
[1759103212551,1.16326481,112290.0,112280.0,0.87705183]
[1759103212753,0.90626954,112290.0,112280.0,0.008]
[1759103212948,1.42026008,112290.0,112280.0,0.008]
[1759103213251,1.16326481,112290.0,112280.0,0.008]
[1759103214055,1.1721919,112290.0,112280.0,0.008]
[1759103216151,1.16326481,112290.0,112280.0,0.008]
[1759103216350,0.50626954,112290.0,112280.0,0.09702]
[1759103216553,0.14546954,112290.0,112280.0,0.09702]
[1759103217454,0.40246481,112290.0,112280.0,0.008]
[1759103217861,0.40246481,112290.0,112280.0,0.09702]
[1759103218951,0.40246481,112290.0,112280.0,0.008]
[1759103219150,0.76326481,112290.0,112280.0,0.83084]
[1759103219856,1.42026008,112290.0,112280.0,0.008]
[1759103221153,2.24318008,112290.0,112280.0,0.008]
[1759103222455,2.24548008,112290.0,112280.0,0.008]
[1759103222648,1.42256008,112290.0,112280.0,0.008]
[1759103222847,2.24508008,112290.0,112280.0,0.008]
[1759103223248,1.42256008,112290.0,112280.0,0.008]
[1759103223451,2.24508008,112290.0,112280.0,0.008]
[1759103223757,1.73108954,112290.0,112280.0,0.008]
[1759103223951,2.24508008,112290.0,112280.0,0.008]
[1759103227348,1.42256008,112290.0,112280.0,0.008]
[1759103227653,2.24436008,112290.0,112280.0,0.008]
[1759103228160,1.42256008,112290.0,112280.0,0.008]
[1759103228358,2.24436008,112290.0,112280.0,0.008]
[1759103234761,1.42256008,112290.0,112280.0,0.008]
[1759103234962,2.24336008,112290.0,112280.0,0.008]
[1759103236261,2.24366384,112290.0,112280.0,0.008]
[1759103236763,2.24370384,112290.0,112280.0,0.008]
[1759103238764,2.24318384,112290.0,112280.0,0.008]
[1759103240364,1.42286384,112290.0,112280.0,0.008]
[1759103240561,2.24314384,112290.0,112280.0,0.008]
[1759103241164,2.27514062,112290.0,112280.0,0.008]
[1759103244368,1.45486062,112290.0,112280.0,0.008]
[1759103244571,2.27442062,112290.0,112280.0,0.008]
[1759103246165,1.45486062,112290.0,112280.0,0.008]
[1759103246367,2.27422062,112290.0,112280.0,0.008]
[1759103246862,1.45486062,112290.0,112280.0,0.008]
[1759103247067,2.27406062,112290.0,112280.0,0.008]
[1759103247560,0.94056632,112290.0,112280.0,0.008]
[1759103247867,1.45486062,112290.0,112280.0,0.008]
[1759103248069,2.27398062,112290.0,112280.0,0.008]
[1759103248669,1.45486062,112290.0,112280.0,0.008]
[1759103249061,2.27406062,112290.0,112280.0,0.008]
[1759103249262,2.25307308,112290.0,112280.0,0.008]
[1759103249468,2.27408234,112290.0,112280.0,0.008]
[1759103251374,1.45488234,112290.0,112280.0,0.008]
[1759103251770,2.27372234,112290.0,112280.0,0.008]
[1759103254775,2.27376234,112290.0,112280.0,0.008]
[1759103257175,2.27376254,112290.0,112280.0,0.008]
[1759103258183,1.45488254,112290.0,112280.0,0.008]
[1759103258375,2.27344254,112290.0,112280.0,0.008]
[1759103258579,1.87316254,112290.0,112280.0,0.008]
[1759103258875,1.84116576,112290.0,112280.0,0.008]
[1759103266282,1.87316254,112290.0,112280.0,0.008]
[1759103267081,0.1230779,112270.0,112260.0,0.39415478]
[1759103267383,0.40123451,112270.0,112260.0,0.39415478]
[1759103267576,1.83706166,112270.0,112260.0,0.04797183]
[1759103267771,0.1028858,112260.0,112250.0,0.13701543]
[1759103267977,0.66005956,112260.0,112250.0,0.13701543]
[1759103268277,0.65305956,112260.0,112250.0,0.04797183]
[1759103268582,0.65305956,112260.0,112250.0,0.53701553]
[1759103268784,0.65305956,112260.0,112250.0,0.79416268]
[1759103269176,0.65305956,112260.0,112250.0,0.8030991]
[1759103269372,0.64205956,112260.0,112250.0,0.54595195]
[1759103269574,0.57102376,112260.0,112250.0,0.54595195]
[1759103269783,0.03572,112260.0,112250.0,1.11592727]
[1759103270076,0.29286715,112260.0,112250.0,1.11592727]
[1759103270277,0.03572,112260.0,112250.0,1.11892727]
[1759103270677,0.1247558,112260.0,112250.0,1.11892727]
[1759103271084,0.01385,112260.0,112250.0,1.18264407]
[1759103271285,0.1028858,112260.0,112250.0,1.18164407]
[1759103271487,0.1028858,112260.0,112250.0,1.18364407]
[1759103272181,0.1028858,112260.0,112250.0,0.92649692]
[1759103272381,0.1247558,112260.0,112250.0,1.18164407]
[1759103272985,0.1247558,112260.0,112250.0,1.18264407]
[1759103273182,0.1247558,112260.0,112250.0,1.18564407]
[1759103275085,0.1247558,112260.0,112250.0,1.12192727]
[1759103275684,0.01385,112260.0,112250.0,1.44279122]
[1759103275885,0.01297,112270.0,112260.0,0.0890358]
[1759103276081,0.01297,112270.0,112260.0,2.03919725]
[1759103276286,0.01297,112270.0,112260.0,2.43919725]
[1759103276687,0.01297,112270.0,112260.0,1.3641301]
[1759103277189,0.01397,112270.0,112260.0,1.3641301]
[1759103277384,0.01397,112270.0,112260.0,0.9641301]
[1759103277581,0.01397,112270.0,112260.0,1.7820101]
[1759103277982,0.1248679,112270.0,112260.0,0.9641301]
[1759103278182,0.1248679,112270.0,112260.0,1.7840101]
[1759103278183,0.03484,112270.0,112260.0,1.7840101]
[1759103279088,0.38101505,112270.0,112260.0,0.70898295]
[1759103279293,0.38101505,112270.0,112260.0,1.57477078]
[1759103279791,0.38101505,112270.0,112260.0,1.58077078]
[1759103279993,0.1238679,112270.0,112260.0,1.83791793]
[1759103280291,0.1238679,112270.0,112260.0,1.83787794]
[1759103280492,0.1238679,112270.0,112260.0,1.32358364]
[1759103280693,0.1341679,112270.0,112260.0,1.83787794]
[1759103281388,0.1341679,112270.0,112260.0,1.02003794]
[1759103281594,0.1341679,112270.0,112260.0,1.83787794]
[1759103281796,0.15516656,112270.0,112260.0,1.83787794]
[1759103284999,0.15516656,112270.0,112260.0,1.02003794]
[1759103285191,0.41231371,112270.0,112260.0,0.93100214]
[1759103285392,0.41231371,112270.0,112260.0,1.74884214]
[1759103285592,0.15516656,112270.0,112260.0,1.74884214]
[1759103285792,0.41231371,112270.0,112260.0,1.58073079]
[1759103287204,0.15516656,112270.0,112260.0,1.58073079]
[1759103287393,0.41231371,112270.0,112260.0,1.58073079]
[1759103287899,0.41231371,112270.0,112260.0,1.83787794]
[1759103288102,0.39131505,112270.0,112260.0,1.83787794]
[1759103288702,0.39131505,112270.0,112260.0,1.58073079]
[1759103289201,0.39131505,112270.0,112260.0,1.83787794]
[1759103289202,0.04514,112270.0,112260.0,1.83787794]
[1759103289593,0.02327,112270.0,112260.0,1.83787794]
[1759103290097,0.02327,112270.0,112260.0,2.23787794]
[1759103290802,0.02327,112270.0,112260.0,2.1899701]
[1759103291001,0.02327,112270.0,112260.0,2.2536869]
[1759103292603,0.02327,112270.0,112260.0,2.51083405]
[1759103292903,0.02372,112270.0,112260.0,2.51083405]
[1759103296199,0.02372,112270.0,112260.0,0.9215526]
[1759103296405,0.02372,112270.0,112260.0,2.2577269]
[1759103297708,0.02372,112270.0,112260.0,1.4358469]
[1759103298006,0.02372,112270.0,112260.0,2.2576869]
[1759103298207,0.02372,112270.0,112260.0,2.25745834]
[1759103298701,0.02372,112270.0,112260.0,0.9215526]
[1759103298907,0.02372,112270.0,112260.0,2.25809834]
[1759103299406,0.02372,112270.0,112260.0,2.25785834]
[1759103300707,0.02372,112270.0,112260.0,1.43561834]
[1759103300909,0.02372,112270.0,112260.0,2.25897834]
[1759103302810,0.02372,112270.0,112260.0,1.43561834]
[1759103303008,0.02372,112270.0,112260.0,2.25861834]
[1759103303510,0.02372,112270.0,112260.0,1.43561834]
[1759103303707,0.02372,112270.0,112260.0,2.25845834]
[1759103306212,0.02372,112270.0,112260.0,1.37190154]
[1759103306417,0.02372,112270.0,112260.0,2.25812405]
[1759103315024,0.02372,112270.0,112260.0,2.19430154]
[1759103315223,0.02372,112270.0,112260.0,2.25812405]
[1759103318730,0.02372,112270.0,112260.0,1.43572405]
[1759103319130,0.02372,112270.0,112260.0,2.25808405]
[1759103319327,0.02372,112270.0,112260.0,0.77869118]
[1759103319526,0.02372,112270.0,112260.0,1.60109118]
[1759103320730,0.02372,112270.0,112260.0,1.34405831]
[1759103320931,0.02372,112270.0,112260.0,1.60109118]
[1759103322533,0.02372,112270.0,112260.0,1.61636046]
[1759103322938,0.1348378,112270.0,112260.0,1.61604046]
[1759103323435,0.1348378,112270.0,112260.0,1.35900759]
[1759103323640,0.1348378,112270.0,112260.0,1.61604046]
[1759103323832,0.1348378,112270.0,112260.0,1.35900759]
[1759103324029,0.1348378,112270.0,112260.0,1.53694867]
[1759103325438,0.1348378,112270.0,112260.0,0.71486867]
[1759103325627,0.5348378,112270.0,112260.0,0.7788185]
[1759103325831,0.5348378,112270.0,112260.0,1.6006185]
[1759103330445,0.5348378,112270.0,112260.0,1.34358563]
[1759103330646,0.5348378,112270.0,112260.0,1.6006185]
[1759103336145,0.5348378,112270.0,112260.0,1.34358563]
[1759103336343,0.5348378,112270.0,112260.0,1.6006185]
[1759103336849,0.5348378,112270.0,112260.0,0.7788185]
[1759103337050,0.5348378,112270.0,112260.0,1.6007785]
[1759103337549,0.1348378,112270.0,112260.0,0.7788185]
[1759103337749,0.1348378,112270.0,112260.0,1.34382563]
[1759103338946,0.1348378,112270.0,112260.0,1.2798758]
[1759103340547,0.1348378,112270.0,112260.0,1.53690867]
[1759103341146,0.04581,112270.0,112260.0,1.53690867]
[1759103342149,0.04581,112270.0,112260.0,1.6008585]
[1759103342351,0.1348379,112270.0,112260.0,1.53690867]
[1759103342943,0.04581,112270.0,112260.0,1.53690867]
[1759103343150,0.04581,112270.0,112260.0,1.6008585]
[1759103343354,0.04581,112270.0,112260.0,1.53690867]
[1759103344453,0.1348379,112270.0,112260.0,1.53690867]
[1759103344852,0.04581,112270.0,112260.0,1.53690867]
[1759103345051,0.04581,112270.0,112260.0,1.2798758]
[1759103345252,0.04581,112270.0,112260.0,1.53690867]
[1759103347948,0.04581,112270.0,112260.0,1.2798758]
[1759103348154,0.04581,112270.0,112260.0,1.53690867]
[1759103352651,0.04581,112270.0,112260.0,1.6008585]
[1759103353265,0.02372,112270.0,112260.0,1.6008585]
[1759103356068,0.02372,112270.0,112260.0,1.53690867]
[1759103359466,0.02372,112270.0,112260.0,1.6008585]
[1759103359868,0.02372,112270.0,112260.0,0.7788185]
[1759103360068,0.04519,112270.0,112260.0,1.5985785]
[1759103360264,0.04519,112270.0,112260.0,1.85569007]
[1759103361067,0.04519,112270.0,112260.0,1.03593007]
[1759103361372,0.04519,112270.0,112260.0,1.85557007]
[1759103362165,0.04519,112270.0,112260.0,1.79162024]
[1759103362560,0.04519,112270.0,112260.0,0.97198024]
[1759103362759,0.79129012,112270.0,112260.0,0.3688]
[1759103363267,0.79129012,112270.0,112260.0,0.82768]
[1759103363268,1.40916234,112270.0,112260.0,0.82768]
[1759103363466,1.15209012,112270.0,112260.0,0.008]
[1759103363767,1.40916234,112270.0,112260.0,0.008]
[1759103363973,1.43024647,112270.0,112260.0,0.008]
[1759103364173,1.41801461,112270.0,112260.0,0.008]
[1759103364374,1.43909688,112270.0,112260.0,0.008]
[1759103368175,0.1237137,112250.0,112240.0,1.53120065]
[1759103368375,0.38078592,112250.0,112240.0,1.53120065]
[1759103368570,0.38078592,112250.0,112240.0,1.27412843]
[1759103369181,0.38078592,112250.0,112240.0,0.52276843]
[1759103369371,0.38078592,112250.0,112240.0,0.52379703]
[1759103369575,0.38078592,112250.0,112240.0,1.34427703]
[1759103369877,0.38078592,112250.0,112240.0,0.9194872]
[1759103370182,0.38078592,112250.0,112240.0,0.9264872]
[1759103370583,0.1237137,112250.0,112240.0,0.9265272]
[1759103370775,0.38078592,112250.0,112240.0,0.9265272]
[1759103370977,0.1237137,112250.0,112240.0,1.18359942]
[1759103371184,0.38078592,112250.0,112240.0,1.60834925]
[1759103371490,0.38078592,112250.0,112240.0,0.9265272]
[1759103371684,0.38078592,112250.0,112240.0,1.18359942]
[1759103371877,0.38078592,112250.0,112240.0,1.24754925]
[1759103373384,0.38078592,112250.0,112240.0,1.60834925]
[1759103373787,0.29174222,112250.0,112240.0,1.60834925]
[1759103374088,0.38078592,112250.0,112240.0,1.60834925]
[1759103374987,0.29174222,112250.0,112240.0,1.86542147]
[1759103376090,0.03467,112250.0,112240.0,1.86542147]
[1759103376492,0.0132,112250.0,112240.0,1.80147164]
[1759103376793,0.0132,112250.0,112240.0,2.20147164]
[1759103377786,0.1022437,112250.0,112240.0,2.20147164]
[1759103378090,0.1022437,112250.0,112240.0,2.26968612]
[1759103379388,0.1022437,112250.0,112240.0,1.86968612]
[1759103379793,0.38078592,112250.0,112240.0,1.6126939]
[1759103380288,0.38078592,112250.0,112240.0,1.86976612]
[1759103380593,0.38078592,112250.0,112240.0,1.6126939]
[1759103381793,0.38078592,112250.0,112240.0,1.6127339]
[1759103381990,0.38078592,112250.0,112240.0,0.16998168]
[1759103382293,0.78078592,112250.0,112240.0,0.90601448]
[1759103382990,0.78078592,112250.0,112240.0,0.08093448]
[1759103383492,0.78078592,112250.0,112240.0,0.01]
[1759103383692,0.5247137,112250.0,112240.0,0.01]
[1759103383991,1.14258592,112250.0,112240.0,0.01]
[1759103384185,1.15164441,112250.0,112240.0,0.01]
[1759103384587,0.1237217,112240.0,112230.0,1.60512964]
[1759103384786,0.38079392,112240.0,112230.0,1.60512964]
[1759103385093,0.65882809,112240.0,112230.0,0.06401726]
[1759103385395,1.01962809,112240.0,112230.0,8.278e-05]
[1759103386599,1.01962809,112240.0,112230.0,0.00108278]
[1759103388094,1.41962809,112240.0,112230.0,0.00108278]
[1759103391694,2.24530809,112240.0,112230.0,0.00108278]
[1759103392900,1.84530809,112240.0,112230.0,0.00108278]
[1759103393392,1.01962809,112240.0,112230.0,0.00108278]
[1759103393591,1.84526809,112240.0,112230.0,0.00108278]
[1759103396704,2.24526809,112240.0,112230.0,0.00108278]
[1759103396902,2.24526809,112240.0,112200.0,0.51381148]
[1759103396903,0.0890755,112210.0,112200.0,0.51381148]
[1759103397097,0.38119772,112210.0,112200.0,1.4277237]
[1759103397897,0.38128827,112210.0,112200.0,1.4277237]
[1759103398097,0.38128827,112210.0,112200.0,1.4347237]
[1759103398399,0.03514055,112210.0,112200.0,2.09179592]
[1759103398605,0.01271055,112210.0,112200.0,2.09179592]
[1759103399297,0.01271055,112210.0,112200.0,2.09979592]
[1759103400604,0.01271055,112210.0,112200.0,2.03586144]
[1759103401404,0.01271055,112210.0,112200.0,2.04478117]
[1759103401605,0.01271055,112210.0,112200.0,2.10871565]
[1759103402201,0.01271055,112210.0,112200.0,2.04478117]
[1759103402807,0.01271055,112210.0,112200.0,2.10871565]
[1759103403110,0.01271055,112210.0,112200.0,2.04478117]
[1759103403308,0.01271055,112210.0,112200.0,1.53063673]
[1759103403500,0.10178605,112210.0,112200.0,1.59457121]
[1759103403705,0.35885827,112210.0,112200.0,2.10871565]
[1759103404010,0.26978277,112210.0,112200.0,2.10871565]
[1759103404209,0.01271055,112210.0,112200.0,2.10871565]
[1759103406309,0.01271055,112210.0,112200.0,1.59457121]
[1759103406508,0.01271055,112210.0,112200.0,2.10871565]
[1759103410417,0.01271055,112210.0,112200.0,2.36578787]
[1759103410616,0.01271055,112210.0,112200.0,2.30185339]
[1759103411410,0.01271055,112210.0,112200.0,2.38094518]
[1759103412010,0.01271055,112210.0,112200.0,2.30185339]
[1759103412820,9.055e-05,112210.0,112200.0,2.30185339]
[1759103413422,9.055e-05,112210.0,112200.0,2.38094518]
[1759103414123,0.01262,112230.0,112220.0,0.0890675]
[1759103414319,0.01262,112230.0,112220.0,2.15085194]
[1759103415120,0.01262,112230.0,112220.0,1.32481194]
[1759103415319,0.01262,112230.0,112220.0,2.15101194]
[1759103415522,0.01262,112230.0,112220.0,2.15401194]
[1759103415917,0.01262,112230.0,112220.0,2.87508098]
[1759103416118,0.01262,112230.0,112220.0,2.04888098]
[1759103416322,0.01262,112230.0,112220.0,2.87496098]
[1759103416515,0.01262,112230.0,112220.0,1.79480876]
[1759103416715,0.01262,112230.0,112220.0,2.62084876]
[1759103417425,0.01262,112230.0,112220.0,1.79480876]
[1759103417625,0.01262,112230.0,112220.0,2.62084876]
[1759103417826,0.01262,112230.0,112220.0,1.79480876]
[1759103418028,0.01262,112230.0,112220.0,2.62100876]
[1759103418928,0.01262,112230.0,112220.0,1.79480876]
[1759103419121,0.01262,112230.0,112220.0,2.62100876]
[1759103420030,0.01262,112230.0,112220.0,1.79480876]
[1759103420226,0.01262,112230.0,112220.0,2.36407554]
[1759103420732,0.01262,112230.0,112220.0,2.36403554]
[1759103420930,0.01262,112230.0,112220.0,2.36419554]
[1759103421128,0.01262,112230.0,112220.0,2.36427554]
[1759103421735,0.01262,112230.0,112220.0,1.53791554]
[1759103422029,0.01262,112230.0,112220.0,2.36427554]
[1759103422332,0.01262,112230.0,112220.0,2.36431554]
[1759103424636,0.01262,112230.0,112220.0,1.53791554]
[1759103424841,0.01262,112230.0,112220.0,2.36415554]
[1759103427236,0.01262,112230.0,112220.0,1.53791554]
[1759103427431,0.38028082,112230.0,112220.0,0.8166675]
[1759103427631,0.29122122,112230.0,112220.0,1.6425875]
[1759103427831,0.03397,112230.0,112220.0,1.6425875]
[1759103428029,0.1230296,112230.0,112220.0,1.6425875]